[Event "Titled Tuesday Blitz June 28 Early 2022"]
[White "Harvey, Marcus R"]
[Black "Hovhannisyan, Robert"]
[WhiteFideId "400092"]
[BlackFideId "13302507"]
[WhiteElo "2485"]
[BlackElo "2570"]
[Result "1-0"]
[Round "11"]
[TimeControl "180+1"]
[Date "2022.06.28"]
[WhiteClock "0:00:06"]
[BlackClock "0:00:05"]

1. d4 {[%clk 0:03:00]}  d5 {[%clk 0:02:59]} 2. c4 {[%clk 0:02:59]}  c6 {[%clk 0:03:00]} 3. cxd5 {[%clk 0:02:59]}  cxd5 {[%clk 0:02:59]} 4. Bf4 {[%clk 0:03:00]}  Nc6 {[%clk 0:02:59]} 5. e3 {[%clk 0:03:00]}  Bf5 {[%clk 0:02:58]} 6. Bb5 {[%clk 0:02:58]}  e6 {[%clk 0:02:57]} 7. Ne2 {[%clk 0:02:58]}  Bd6 {[%clk 0:02:54]} 8. O-O {[%clk 0:02:57]}  Ne7 {[%clk 0:02:53]} 9. Nd2 {[%clk 0:02:56]}  O-O {[%clk 0:02:52]} 10. Bxd6 {[%clk 0:02:55]}  Qxd6 {[%clk 0:02:52]} 11. Nc3 {[%clk 0:02:55]}  a6 {[%clk 0:02:50]} 12. Be2 {[%clk 0:02:55]}  Rfc8 {[%clk 0:02:48]} 13. Nb3 {[%clk 0:02:53]}  Bg6 {[%clk 0:02:40]} 14. a3 {[%clk 0:02:53]}  Qd8 {[%clk 0:02:38]} 15. Nc5 {[%clk 0:02:51]}  Rc7 {[%clk 0:02:04]} 16. Qd2 {[%clk 0:02:51]}  Nf5 {[%clk 0:01:59]} 17. Rfc1 {[%clk 0:02:50]}  Nd6 {[%clk 0:01:59]} 18. b4 {[%clk 0:02:50]}  Ne7 {[%clk 0:01:45]} 19. Bf1 {[%clk 0:02:38]}  h6 {[%clk 0:01:44]} 20. N3a4 {[%clk 0:02:34]}  Rcc8 {[%clk 0:01:21]} 21. f3 {[%clk 0:02:28]}  Nc4 {[%clk 0:01:06]} 22. Qf2 {[%clk 0:02:17]}  b6 {[%clk 0:01:02]} 23. Nd3 {[%clk 0:02:13]}  Bxd3 {[%clk 0:01:00]} 24. Bxd3 {[%clk 0:02:13]}  Rab8 {[%clk 0:00:57]} 25. Bxc4 {[%clk 0:01:49]}  dxc4 {[%clk 0:00:51]} 26. e4 {[%clk 0:01:44]}  Qd7 {[%clk 0:00:45]} 27. Nc3 {[%clk 0:01:44]}  b5 {[%clk 0:00:43]} 28. Rd1 {[%clk 0:01:44]}  Rd8 {[%clk 0:00:41]} 29. Rd2 {[%clk 0:01:44]}  Qb7 {[%clk 0:00:39]} 30. Rad1 {[%clk 0:01:38]}  Rd7 {[%clk 0:00:40]} 31. h4 {[%clk 0:01:36]}  Rbd8 {[%clk 0:00:39]} 32. h5 {[%clk 0:01:36]}  Qa7 {[%clk 0:00:39]} 33. d5 {[%clk 0:01:32]}  Qxf2+ {[%clk 0:00:37]} 34. Kxf2 {[%clk 0:01:33]}  exd5 {[%clk 0:00:38]} 35. exd5 {[%clk 0:01:33]}  Nf5 {[%clk 0:00:24]} 36. Ne4 {[%clk 0:01:29]}  Nd6 {[%clk 0:00:24]} 37. Nc5 {[%clk 0:01:26]}  Ra7 {[%clk 0:00:24]} 38. a4 {[%clk 0:01:21]}  Rb8 {[%clk 0:00:21]} 39. a5 {[%clk 0:01:21]}  Kf8 {[%clk 0:00:19]} 40. g4 {[%clk 0:01:18]}  Re8 {[%clk 0:00:18]} 41. Rd4 {[%clk 0:01:14]}  Raa8 {[%clk 0:00:17]} 42. R1d2 {[%clk 0:01:01]}  Re7 {[%clk 0:00:17]} 43. Re2 {[%clk 0:00:57]}  Rxe2+ {[%clk 0:00:17]} 44. Kxe2 {[%clk 0:00:58]}  g5 {[%clk 0:00:16]} 45. Kd2 {[%clk 0:00:25]}  Kg7 {[%clk 0:00:14]} 46. f4 {[%clk 0:00:15]}  Kf6 {[%clk 0:00:08]} 47. Nd7+ {[%clk 0:00:16]}  Ke7 {[%clk 0:00:08]} 48. Nc5 {[%clk 0:00:13]}  Kf6 {[%clk 0:00:08]} 49. Nd7+ {[%clk 0:00:14]}  Ke7 {[%clk 0:00:09]} 50. Nc5 {[%clk 0:00:09]}  gxf4 {[%clk 0:00:05]} 51. Rxf4 {[%clk 0:00:09]}  Ra7 {[%clk 0:00:05]} 52. Kc3 {[%clk 0:00:09]}  Ra8 {[%clk 0:00:05]} 53. Rf1 {[%clk 0:00:07]}  Rg8 {[%clk 0:00:02]} 54. Rf4 {[%clk 0:00:07]}  Ra8 {[%clk 0:00:02]} 55. Kd4 {[%clk 0:00:08]}  Ra7 {[%clk 0:00:02]} 56. Rf3 {[%clk 0:00:08]}  Ra8 {[%clk 0:00:03]} 57. Ke5 {[%clk 0:00:07]}  Ra7 {[%clk 0:00:02]} 58. Re3 {[%clk 0:00:07]}  Ra8 {[%clk 0:00:02]} 59. Kf4+ {[%clk 0:00:07]}  Kf6 {[%clk 0:00:02]} 60. Nd7+ {[%clk 0:00:06]}  Kg7 {[%clk 0:00:02]} 61. Nc5 {[%clk 0:00:06]}  Ra7 {[%clk 0:00:02]} 62. g5 {[%clk 0:00:06]}  hxg5+ {[%clk 0:00:02]} 63. Kxg5 {[%clk 0:00:07]}  f6+ {[%clk 0:00:03]} 64. Kf4 {[%clk 0:00:07]}  Kh6 {[%clk 0:00:02]} 65. Re6 {[%clk 0:00:07]}  Nf7 {[%clk 0:00:01]} 66. Rxf6+ {[%clk 0:00:06]}  Kxh5 {[%clk 0:00:02]} 67. Rxa6 {[%clk 0:00:06]}  Re7 {[%clk 0:00:01]} 68. Re6 {[%clk 0:00:05]}  Rc7 {[%clk 0:00:01]} 69. Ke3 {[%clk 0:00:04]}  c3 {[%clk 0:00:01]} 70. Kd3 {[%clk 0:00:04]}  Ng5 {[%clk 0:00:02]} 71. Rc6 {[%clk 0:00:02]}  Rf7 {[%clk 0:00:02]} 72. Kxc3 {[%clk 0:00:03]}  Rf3+ {[%clk 0:00:03]} 73. Kd4 {[%clk 0:00:04]}  Rf4+ {[%clk 0:00:03]} 74. Kc3 {[%clk 0:00:04]}  Rf3+ {[%clk 0:00:03]} 75. Kc2 {[%clk 0:00:04]}  Rf2+ {[%clk 0:00:04]} 76. Kd3 {[%clk 0:00:05]}  Rf3+ {[%clk 0:00:04]} 77. Ke2 {[%clk 0:00:05]}  Ra3 {[%clk 0:00:04]} 78. a6 {[%clk 0:00:05]}  Kg4 {[%clk 0:00:02]} 79. d6 {[%clk 0:00:05]}  Ra2+ {[%clk 0:00:02]} 80. Kd3 {[%clk 0:00:05]}  Ra3+ {[%clk 0:00:03]} 81. Kc2 {[%clk 0:00:06]}  Nf3 {[%clk 0:00:03]} 82. Kb2 {[%clk 0:00:05]}  Re3 {[%clk 0:00:01]} 83. a7 {[%clk 0:00:06]}  Re2+ {[%clk 0:00:02]} 84. Kb1 {[%clk 0:00:06]}  Re1+ {[%clk 0:00:02]} 85. Kc2 {[%clk 0:00:07]}  Re2+ {[%clk 0:00:03]} 86. Kd1 {[%clk 0:00:07]}  Rd2+ {[%clk 0:00:03]} 87. Kc1 {[%clk 0:00:07]}  Ra2 {[%clk 0:00:02]} 88. Ra6 {[%clk 0:00:08]}  Re2 {[%clk 0:00:02]} 89. a8=Q {[%clk 0:00:07]}  Nd4 {[%clk 0:00:03]} 90. Qd5 {[%clk 0:00:06]}  Re1+ {[%clk 0:00:02]} 91. Kd2 {[%clk 0:00:06]}  Re2+ {[%clk 0:00:03]} 92. Kd3 {[%clk 0:00:06]}  Nf3 {[%clk 0:00:04]} 93. Kxe2 {[%clk 0:00:06]}  Nh4 {[%clk 0:00:04]} 94. Qe4+ {[%clk 0:00:06]}  Kg3 {[%clk 0:00:04]} 95. Qxh4+ {[%clk 0:00:06]}  Kg2 {[%clk 0:00:04]} 96. d7 {[%clk 0:00:06]}  Kg1 {[%clk 0:00:05]} 97. d8=Q {[%clk 0:00:06]} 1-0


[Site "https://www.chess.com"]

[Event "Titled Tuesday Blitz June 28 Early 2022"]
[White "Heinemann, Josefine"]
[Black "Li, Zhuoling"]
[WhiteFideId "12900460"]
[BlackFideId "8605629"]
[WhiteElo "2300"]
[BlackElo "2298"]
[Result "1/2-1/2"]
[Round "11"]
[TimeControl "180+1"]
[Date "2022.06.28"]
[WhiteClock "0:00:17"]
[BlackClock "0:00:38"]

1. Nf3 {[%clk 0:03:00]}  Nf6 {[%clk 0:02:59]} 2. c4 {[%clk 0:02:56]}  g6 {[%clk 0:02:58]} 3. Nc3 {[%clk 0:02:56]}  d5 {[%clk 0:02:58]} 4. cxd5 {[%clk 0:02:56]}  Nxd5 {[%clk 0:02:58]} 5. h4 {[%clk 0:02:56]}  Nf6 {[%clk 0:02:52]} 6. e4 {[%clk 0:02:49]}  Bg7 {[%clk 0:02:40]} 7. Be2 {[%clk 0:02:33]}  Nc6 {[%clk 0:02:28]} 8. d3 {[%clk 0:02:32]}  e5 {[%clk 0:02:24]} 9. Bg5 {[%clk 0:02:24]}  h6 {[%clk 0:02:17]} 10. Be3 {[%clk 0:02:20]}  Be6 {[%clk 0:02:12]} 11. d4 {[%clk 0:02:11]}  exd4 {[%clk 0:02:12]} 12. Nxd4 {[%clk 0:02:11]}  Nxd4 {[%clk 0:02:12]} 13. Qxd4 {[%clk 0:02:02]}  Qxd4 {[%clk 0:02:11]} 14. Bxd4 {[%clk 0:02:02]}  Rd8 {[%clk 0:02:08]} 15. Be3 {[%clk 0:01:59]}  a6 {[%clk 0:02:05]} 16. f3 {[%clk 0:01:58]}  Nd7 {[%clk 0:01:57]} 17. Kf2 {[%clk 0:01:50]}  Ne5 {[%clk 0:01:54]} 18. Rhd1 {[%clk 0:01:49]}  O-O {[%clk 0:01:50]} 19. h5 {[%clk 0:01:40]}  g5 {[%clk 0:01:38]} 20. g4 {[%clk 0:01:39]}  Bc4 {[%clk 0:01:35]} 21. Rxd8 {[%clk 0:01:19]}  Rxd8 {[%clk 0:01:34]} 22. Rd1 {[%clk 0:01:15]}  Rxd1 {[%clk 0:01:32]} 23. Nxd1 {[%clk 0:01:15]}  Bxa2 {[%clk 0:01:30]} 24. Nc3 {[%clk 0:01:02]}  Be6 {[%clk 0:01:30]} 25. Nd5 {[%clk 0:00:59]}  Bxd5 {[%clk 0:01:29]} 26. exd5 {[%clk 0:01:00]}  Kf8 {[%clk 0:01:27]} 27. f4 {[%clk 0:00:58]}  gxf4 {[%clk 0:01:22]} 28. Bxf4 {[%clk 0:00:59]}  Ke7 {[%clk 0:01:19]} 29. b3 {[%clk 0:00:38]}  Kd6 {[%clk 0:01:19]} 30. Bf3 {[%clk 0:00:38]}  Kc5 {[%clk 0:01:18]} 31. Bxe5 {[%clk 0:00:19]}  Bxe5 {[%clk 0:01:17]} 32. d6 {[%clk 0:00:20]}  cxd6 {[%clk 0:01:11]} 33. Bxb7 {[%clk 0:00:20]}  a5 {[%clk 0:01:11]} 34. Ke2 {[%clk 0:00:20]}  Kd4 {[%clk 0:01:08]} 35. Kf3 {[%clk 0:00:20]}  d5 {[%clk 0:01:03]} 36. Bc6 {[%clk 0:00:19]}  Kc5 {[%clk 0:00:58]} 37. Bb7 {[%clk 0:00:19]}  f6 {[%clk 0:00:57]} 38. Ba8 {[%clk 0:00:19]}  Kd4 {[%clk 0:00:54]} 39. Bb7 {[%clk 0:00:18]}  Bd6 {[%clk 0:00:54]} 40. Bc6 {[%clk 0:00:18]}  Ke5 {[%clk 0:00:51]} 41. Bd7 {[%clk 0:00:17]}  d4 {[%clk 0:00:50]} 42. Bf5 {[%clk 0:00:17]}  Kd5 {[%clk 0:00:47]} 43. Ke2 {[%clk 0:00:17]}  Kc5 {[%clk 0:00:43]} 44. Kd3 {[%clk 0:00:17]}  Be5 {[%clk 0:00:42]} 45. Be6 {[%clk 0:00:17]}  Kb4 {[%clk 0:00:40]} 46. Bf7 {[%clk 0:00:17]}  a4 {[%clk 0:00:38]} 47. bxa4 {[%clk 0:00:17]}  Kxa4 {[%clk 0:00:38]} 48. Be6 {[%clk 0:00:16]}  Kb4 {[%clk 0:00:38]} 49. Bf7 {[%clk 0:00:17]}  Kc5 {[%clk 0:00:38]} 50. Be6 {[%clk 0:00:17]}  Kd6 {[%clk 0:00:38]} 1/2-1/2


[Site "https://www.chess.com"]

[Event "Titled Tuesday Blitz June 28 Early 2022"]
[White "Hollan, Petr"]
[Black "Rustemov, Alexander"]
[WhiteFideId "360945"]
[BlackFideId "4119002"]
[WhiteElo "2284"]
[BlackElo "2729"]
[Result "0-1"]
[Round "11"]
[TimeControl "180+1"]
[Date "2022.06.28"]
[WhiteClock "0:00:40"]
[BlackClock "0:00:36"]

1. e4 {[%clk 0:03:00]}  e6 {[%clk 0:02:58]} 2. d4 {[%clk 0:02:59]}  d5 {[%clk 0:02:59]} 3. Nc3 {[%clk 0:03:00]}  Bb4 {[%clk 0:02:58]} 4. exd5 {[%clk 0:02:59]}  exd5 {[%clk 0:02:57]} 5. Bd3 {[%clk 0:02:59]}  Nc6 {[%clk 0:02:56]} 6. Ne2 {[%clk 0:02:59]}  Nge7 {[%clk 0:02:55]} 7. O-O {[%clk 0:02:59]}  Bf5 {[%clk 0:02:55]} 8. a3 {[%clk 0:02:58]}  Bxc3 {[%clk 0:02:50]} 9. Nxc3 {[%clk 0:02:57]}  Qd7 {[%clk 0:02:47]} 10. Bxf5 {[%clk 0:02:51]}  Qxf5 {[%clk 0:02:46]} 11. Re1 {[%clk 0:02:52]}  O-O {[%clk 0:02:42]} 12. Be3 {[%clk 0:02:50]}  a6 {[%clk 0:02:36]} 13. h3 {[%clk 0:02:26]}  h5 {[%clk 0:02:34]} 14. Qd2 {[%clk 0:02:26]}  Rfe8 {[%clk 0:02:33]} 15. f3 {[%clk 0:02:25]}  h4 {[%clk 0:02:28]} 16. Bf2 {[%clk 0:02:25]}  Ng6 {[%clk 0:02:27]} 17. Rad1 {[%clk 0:02:18]}  f6 {[%clk 0:02:12]} 18. Ne2 {[%clk 0:02:11]}  Re6 {[%clk 0:02:05]} 19. Nc1 {[%clk 0:02:04]}  Rae8 {[%clk 0:02:03]} 20. Nd3 {[%clk 0:01:56]}  b6 {[%clk 0:01:59]} 21. Rxe6 {[%clk 0:01:52]}  Rxe6 {[%clk 0:01:59]} 22. Re1 {[%clk 0:01:50]}  Rxe1+ {[%clk 0:01:51]} 23. Qxe1 {[%clk 0:01:49]}  Kf7 {[%clk 0:01:46]} 24. b3 {[%clk 0:01:41]}  a5 {[%clk 0:01:45]} 25. Qe3 {[%clk 0:01:35]}  Nd8 {[%clk 0:01:40]} 26. c4 {[%clk 0:01:29]}  Ne6 {[%clk 0:01:39]} 27. c5 {[%clk 0:01:28]}  bxc5 {[%clk 0:01:25]} 28. Nxc5 {[%clk 0:01:28]}  Nxc5 {[%clk 0:01:23]} 29. dxc5 {[%clk 0:01:28]}  Nf4 {[%clk 0:01:15]} 30. Bxh4 {[%clk 0:01:09]}  d4 {[%clk 0:01:14]} 31. Qd2 {[%clk 0:01:08]}  d3 {[%clk 0:00:59]} 32. Bg3 {[%clk 0:01:07]}  Qxc5+ {[%clk 0:00:53]} 33. Kh2 {[%clk 0:01:07]}  Ne2 {[%clk 0:00:52]} 34. Qd1 {[%clk 0:00:59]}  Qc2 {[%clk 0:00:47]} 35. Qe1 {[%clk 0:00:45]}  d2 {[%clk 0:00:46]} 36. Qxe2 {[%clk 0:00:45]}  d1=Q {[%clk 0:00:45]} 37. Qa6 {[%clk 0:00:40]}  Qde2 {[%clk 0:00:36]} 0-1


[Site "https://www.chess.com"]

[Event "Titled Tuesday Blitz June 28 Early 2022"]
[White "Jaskolka, Tomasz"]
[Black "Popilski, Gil"]
[WhiteFideId "1170791"]
[BlackFideId "2809060"]
[WhiteElo "2073"]
[BlackElo "2537"]
[Result "0-1"]
[Round "11"]
[TimeControl "180+1"]
[Date "2022.06.28"]
[WhiteClock "0:00:19"]
[BlackClock "0:00:11"]

1. d4 {[%clk 0:03:00]}  f5 {[%clk 0:02:48]} 2. Nc3 {[%clk 0:02:58]}  d5 {[%clk 0:02:45]} 3. Nf3 {[%clk 0:02:58]}  Nf6 {[%clk 0:02:44]} 4. Ne5 {[%clk 0:02:57]}  e6 {[%clk 0:02:41]} 5. g3 {[%clk 0:02:57]}  c5 {[%clk 0:02:38]} 6. e3 {[%clk 0:02:56]}  Nc6 {[%clk 0:02:34]} 7. f4 {[%clk 0:02:55]}  cxd4 {[%clk 0:02:32]} 8. exd4 {[%clk 0:02:56]}  Bb4 {[%clk 0:02:32]} 9. Be3 {[%clk 0:02:54]}  Qa5 {[%clk 0:02:25]} 10. Qd3 {[%clk 0:02:53]}  Ne4 {[%clk 0:02:23]} 11. Nxc6 {[%clk 0:02:51]}  bxc6 {[%clk 0:02:23]} 12. Bd2 {[%clk 0:02:49]}  Rb8 {[%clk 0:02:20]} 13. Bg2 {[%clk 0:02:46]}  Ba6 {[%clk 0:02:19]} 14. Qe3 {[%clk 0:02:43]}  O-O {[%clk 0:02:16]} 15. Bxe4 {[%clk 0:02:34]}  fxe4 {[%clk 0:02:13]} 16. a3 {[%clk 0:02:35]}  c5 {[%clk 0:01:59]} 17. Rb1 {[%clk 0:01:51]}  cxd4 {[%clk 0:01:51]} 18. axb4 {[%clk 0:01:44]}  Qb6 {[%clk 0:00:51]} 19. Qg1 {[%clk 0:01:26]}  e3 {[%clk 0:00:51]} 20. Bc1 {[%clk 0:01:12]}  Qxb4 {[%clk 0:00:49]} 21. Bxe3 {[%clk 0:01:09]}  Qxc3+ {[%clk 0:00:27]} 22. bxc3 {[%clk 0:01:02]}  Rxb1+ {[%clk 0:00:26]} 23. Kd2 {[%clk 0:01:03]}  Rxg1 {[%clk 0:00:24]} 24. Bxg1 {[%clk 0:01:02]}  dxc3+ {[%clk 0:00:24]} 25. Kxc3 {[%clk 0:01:01]}  Rc8+ {[%clk 0:00:21]} 26. Kd2 {[%clk 0:01:01]}  Rc7 {[%clk 0:00:16]} 27. Bd4 {[%clk 0:01:00]}  Bb5 {[%clk 0:00:15]} 28. g4 {[%clk 0:00:54]}  a6 {[%clk 0:00:15]} 29. Re1 {[%clk 0:00:53]}  Kf7 {[%clk 0:00:15]} 30. h4 {[%clk 0:00:53]}  Ba4 {[%clk 0:00:13]} 31. c3 {[%clk 0:00:53]}  Rb7 {[%clk 0:00:13]} 32. f5 {[%clk 0:00:50]}  exf5 {[%clk 0:00:12]} 33. gxf5 {[%clk 0:00:50]}  Rb2+ {[%clk 0:00:12]} 34. Ke3 {[%clk 0:00:51]}  Bb5 {[%clk 0:00:12]} 35. Kf4 {[%clk 0:00:49]}  Re2 {[%clk 0:00:11]} 36. Rg1 {[%clk 0:00:50]}  g6 {[%clk 0:00:11]} 37. f6 {[%clk 0:00:49]}  Re4+ {[%clk 0:00:09]} 38. Kf3 {[%clk 0:00:47]}  Rxh4 {[%clk 0:00:08]} 39. Rg5 {[%clk 0:00:42]}  h6 {[%clk 0:00:07]} 40. Re5 {[%clk 0:00:40]}  Re4 {[%clk 0:00:07]} 41. Rxd5 {[%clk 0:00:36]}  Re6 {[%clk 0:00:04]} 42. Rc5 {[%clk 0:00:34]}  Rc6 {[%clk 0:00:03]} 43. Rd5 {[%clk 0:00:33]}  Rxf6+ {[%clk 0:00:03]} 44. Bxf6 {[%clk 0:00:31]}  Bc6 {[%clk 0:00:03]} 45. Ke4 {[%clk 0:00:23]}  Bxd5+ {[%clk 0:00:04]} 46. Kxd5 {[%clk 0:00:24]}  Kxf6 {[%clk 0:00:04]} 47. c4 {[%clk 0:00:24]}  Ke7 {[%clk 0:00:05]} 48. Kc6 {[%clk 0:00:16]}  h5 {[%clk 0:00:05]} 49. c5 {[%clk 0:00:16]}  h4 {[%clk 0:00:06]} 50. Kb6 {[%clk 0:00:13]}  h3 {[%clk 0:00:07]} 51. c6 {[%clk 0:00:14]}  h2 {[%clk 0:00:08]} 52. c7 {[%clk 0:00:15]}  h1=Q {[%clk 0:00:08]} 53. c8=Q {[%clk 0:00:15]}  Qb1+ {[%clk 0:00:07]} 54. Kxa6 {[%clk 0:00:15]}  Qa2+ {[%clk 0:00:07]} 55. Kb5 {[%clk 0:00:15]}  Qb3+ {[%clk 0:00:08]} 56. Ka5 {[%clk 0:00:16]}  Qd5+ {[%clk 0:00:08]} 57. Kb4 {[%clk 0:00:14]}  Qe4+ {[%clk 0:00:08]} 58. Kc3 {[%clk 0:00:13]}  Kf6 {[%clk 0:00:08]} 59. Qf8+ {[%clk 0:00:12]}  Kg5 {[%clk 0:00:08]} 60. Qd8+ {[%clk 0:00:13]}  Kg4 {[%clk 0:00:08]} 61. Kd2 {[%clk 0:00:12]}  g5 {[%clk 0:00:07]} 62. Qd7+ {[%clk 0:00:12]}  Kf4 {[%clk 0:00:07]} 63. Qf7+ {[%clk 0:00:11]}  Kg3 {[%clk 0:00:07]} 64. Qc7+ {[%clk 0:00:10]}  Qf4+ {[%clk 0:00:07]} 65. Qxf4+ {[%clk 0:00:11]}  gxf4 {[%clk 0:00:08]} 66. Ke2 {[%clk 0:00:11]}  Kg2 {[%clk 0:00:08]} 67. Ke1 {[%clk 0:00:12]}  f3 {[%clk 0:00:09]} 68. Kd2 {[%clk 0:00:12]}  f2 {[%clk 0:00:10]} 69. Ke3 {[%clk 0:00:13]}  f1=Q {[%clk 0:00:11]} 70. Kd2 {[%clk 0:00:14]}  Qf2+ {[%clk 0:00:09]} 71. Kc3 {[%clk 0:00:14]}  Kf3 {[%clk 0:00:09]} 72. Kd3 {[%clk 0:00:15]}  Qe3+ {[%clk 0:00:09]} 73. Kc4 {[%clk 0:00:16]}  Ke4 {[%clk 0:00:10]} 74. Kb5 {[%clk 0:00:17]}  Qc3 {[%clk 0:00:10]} 75. Ka4 {[%clk 0:00:17]}  Kd5 {[%clk 0:00:10]} 76. Kb5 {[%clk 0:00:18]}  Qb3+ {[%clk 0:00:10]} 77. Ka6 {[%clk 0:00:18]}  Kc6 {[%clk 0:00:11]} 78. Ka5 {[%clk 0:00:19]}  Qa3# {[%clk 0:00:11]} 0-1


[Site "https://www.chess.com"]

[Event "Titled Tuesday Blitz June 28 Early 2022"]
[White "Kohler, Aran"]
[Black "Daeschler, Florian"]
[WhiteFideId "1002856"]
[BlackFideId "20678193"]
[WhiteElo "2280"]
[BlackElo "2221"]
[Result "0-1"]
[Round "11"]
[TimeControl "180+1"]
[Date "2022.06.28"]
[WhiteClock "0:00:04"]
[BlackClock "0:00:23"]

1. c4 {[%clk 0:02:59]}  Nf6 {[%clk 0:02:58]} 2. Nc3 {[%clk 0:03:00]}  e6 {[%clk 0:02:54]} 3. Nf3 {[%clk 0:02:58]}  d5 {[%clk 0:02:53]} 4. d4 {[%clk 0:02:57]}  dxc4 {[%clk 0:02:51]} 5. Qa4+ {[%clk 0:02:42]}  Nc6 {[%clk 0:02:44]} 6. Qxc4 {[%clk 0:02:43]}  Nd5 {[%clk 0:02:39]} 7. a3 {[%clk 0:02:22]}  Nxc3 {[%clk 0:02:31]} 8. bxc3 {[%clk 0:02:20]}  Bd6 {[%clk 0:02:26]} 9. g3 {[%clk 0:02:14]}  O-O {[%clk 0:02:24]} 10. Bg2 {[%clk 0:02:14]}  e5 {[%clk 0:02:23]} 11. dxe5 {[%clk 0:02:12]}  Nxe5 {[%clk 0:02:22]} 12. Nxe5 {[%clk 0:02:10]}  Bxe5 {[%clk 0:02:23]} 13. O-O {[%clk 0:02:07]}  c6 {[%clk 0:02:21]} 14. Bf4 {[%clk 0:01:59]}  Be6 {[%clk 0:02:19]} 15. Qb4 {[%clk 0:01:53]}  Bxf4 {[%clk 0:02:10]} 16. Qxf4 {[%clk 0:01:51]}  Qe7 {[%clk 0:01:51]} 17. Rfb1 {[%clk 0:01:43]}  Rfd8 {[%clk 0:01:46]} 18. Qb4 {[%clk 0:01:41]}  Rd7 {[%clk 0:01:40]} 19. Qxe7 {[%clk 0:01:37]}  Rxe7 {[%clk 0:01:41]} 20. Rd1 {[%clk 0:01:30]}  Bg4 {[%clk 0:01:33]} 21. f3 {[%clk 0:01:28]}  Be6 {[%clk 0:01:32]} 22. e4 {[%clk 0:01:28]}  Kf8 {[%clk 0:01:25]} 23. Rd6 {[%clk 0:01:24]}  Rd7 {[%clk 0:01:24]} 24. Rad1 {[%clk 0:01:21]}  Ke7 {[%clk 0:01:24]} 25. Rxd7+ {[%clk 0:01:20]}  Bxd7 {[%clk 0:01:24]} 26. Kf2 {[%clk 0:01:14]}  Rd8 {[%clk 0:01:20]} 27. Ke3 {[%clk 0:01:11]}  Be6 {[%clk 0:01:18]} 28. Rxd8 {[%clk 0:01:10]}  Kxd8 {[%clk 0:01:19]} 29. Kd4 {[%clk 0:01:06]}  Kc7 {[%clk 0:01:17]} 30. Bf1 {[%clk 0:01:00]}  Kd6 {[%clk 0:01:14]} 31. f4 {[%clk 0:00:58]}  c5+ {[%clk 0:01:13]} 32. Ke3 {[%clk 0:00:57]}  Kc6 {[%clk 0:01:11]} 33. f5 {[%clk 0:00:49]}  Bb3 {[%clk 0:01:10]} 34. c4 {[%clk 0:00:41]}  a6 {[%clk 0:01:08]} 35. e5 {[%clk 0:00:33]}  b5 {[%clk 0:00:54]} 36. Bg2+ {[%clk 0:00:27]}  Kd7 {[%clk 0:00:43]} 37. cxb5 {[%clk 0:00:27]}  axb5 {[%clk 0:00:41]} 38. g4 {[%clk 0:00:23]}  b4 {[%clk 0:00:34]} 39. axb4 {[%clk 0:00:19]}  cxb4 {[%clk 0:00:35]} 40. Kd4 {[%clk 0:00:19]}  Bd1 {[%clk 0:00:35]} 41. h3 {[%clk 0:00:08]}  Be2 {[%clk 0:00:26]} 42. Bd5 {[%clk 0:00:05]}  Ke7 {[%clk 0:00:25]} 43. g5 {[%clk 0:00:04]}  Bf1 {[%clk 0:00:23]} 0-1


[Site "https://www.chess.com"]

[Event "Titled Tuesday Blitz June 28 Early 2022"]
[White "Kuzmin, Roman"]
[Black "Ladan, Nicholas"]
[WhiteFideId "44134932"]
[BlackFideId "30918855"]
[WhiteElo "1968"]
[BlackElo "2167"]
[Result "1-0"]
[Round "11"]
[TimeControl "180+1"]
[Date "2022.06.28"]
[WhiteClock "0:01:04"]
[BlackClock "0:00:22"]

1. e4 {[%clk 0:03:00]}  e5 {[%clk 0:03:00]} 2. Nf3 {[%clk 0:03:00]}  Nc6 {[%clk 0:03:00]} 3. Bb5 {[%clk 0:03:00]}  a6 {[%clk 0:03:00]} 4. Ba4 {[%clk 0:03:00]}  g6 {[%clk 0:02:59]} 5. c3 {[%clk 0:02:58]}  Bg7 {[%clk 0:02:59]} 6. O-O {[%clk 0:02:57]}  d6 {[%clk 0:02:58]} 7. d3 {[%clk 0:02:56]}  Nf6 {[%clk 0:02:56]} 8. Nbd2 {[%clk 0:02:54]}  O-O {[%clk 0:02:55]} 9. Re1 {[%clk 0:02:55]}  Nh5 {[%clk 0:02:53]} 10. Nf1 {[%clk 0:02:53]}  h6 {[%clk 0:02:46]} 11. h3 {[%clk 0:02:38]}  Kh7 {[%clk 0:02:30]} 12. d4 {[%clk 0:02:34]}  exd4 {[%clk 0:02:25]} 13. Nxd4 {[%clk 0:02:29]}  Nxd4 {[%clk 0:02:08]} 14. cxd4 {[%clk 0:02:30]}  b5 {[%clk 0:02:08]} 15. Bc2 {[%clk 0:02:28]}  Bb7 {[%clk 0:02:08]} 16. e5 {[%clk 0:02:20]}  dxe5 {[%clk 0:02:05]} 17. Qxh5 {[%clk 0:02:18]}  exd4 {[%clk 0:01:56]} 18. Qd1 {[%clk 0:01:55]}  c5 {[%clk 0:01:55]} 19. Bf4 {[%clk 0:01:54]}  c4 {[%clk 0:01:48]} 20. Be4 {[%clk 0:01:49]}  Bxe4 {[%clk 0:01:45]} 21. Rxe4 {[%clk 0:01:49]}  d3 {[%clk 0:01:45]} 22. Be5 {[%clk 0:01:43]}  Qd5 {[%clk 0:01:37]} 23. Bxg7 {[%clk 0:01:41]}  Qxe4 {[%clk 0:01:27]} 24. Bxf8 {[%clk 0:01:40]}  Rxf8 {[%clk 0:01:27]} 25. Qd2 {[%clk 0:01:31]}  Re8 {[%clk 0:01:23]} 26. Ne3 {[%clk 0:01:31]}  f5 {[%clk 0:01:20]} 27. Re1 {[%clk 0:01:14]}  Qc6 {[%clk 0:00:56]} 28. Nd1 {[%clk 0:01:10]}  Re4 {[%clk 0:00:41]} 29. Nc3 {[%clk 0:01:09]}  Rxe1+ {[%clk 0:00:33]} 30. Qxe1 {[%clk 0:01:10]}  b4 {[%clk 0:00:33]} 31. Qe7+ {[%clk 0:01:09]}  Kg8 {[%clk 0:00:33]} 32. Qxb4 {[%clk 0:01:09]}  d2 {[%clk 0:00:27]} 33. Qb8+ {[%clk 0:01:09]}  Kf7 {[%clk 0:00:26]} 34. Qa7+ {[%clk 0:01:07]}  Ke6 {[%clk 0:00:24]} 35. Qd4 {[%clk 0:01:08]}  Qd6 {[%clk 0:00:21]} 36. Qxd6+ {[%clk 0:01:04]}  Kxd6 {[%clk 0:00:22]} 37. Kf1 {[%clk 0:01:04]} 1-0


[Site "https://www.chess.com"]